bitfinex-derivatives/quotes_SOLF0:USTF0_20250426
["timestamp","ask_amount","ask_price","bid_price","bid_amount"]
[1745644796125,6.6504,150.31,150.28,5.90566008]
[1745644796423,5.90566008,150.33,150.27,12.55736008]
[1745644797325,6.6509,150.3,150.27,5.90566008]
[1745644797821,6.6509,150.3,150.27,12.55746008]
[1745644800030,6.6502,150.31,150.27,12.55746008]
[1745644803031,6.6505,150.3,150.27,12.55746008]
[1745644803532,6.6505,150.3,150.27,5.90566008]
[1745644803729,5.90566008,150.31,150.26,5.90566008]
[1745644803928,5.90566008,150.31,150.22,5.90566008]
[1745644803929,5.90566008,150.27,150.22,5.90566008]
[1745644804334,6.6531,150.25,150.22,5.90566008]
[1745644804635,5.90566008,150.27,150.22,5.90566008]
[1745644804833,6.653,150.25,150.22,5.90566008]
[1745644806033,6.6524,150.26,150.22,5.90566008]
[1745644806338,6.6524,150.26,150.21,6.6544]
[1745644806531,6.6524,150.26,150.22,5.90566008]
[1745644806834,5.90566008,150.27,150.22,5.90566008]
[1745644807533,5.90566008,150.27,150.23,6.6533]
[1745644808129,5.90566008,150.27,150.22,5.90566008]
[1745644808336,23.46,150.28,150.24,5.90566008]
[1745644808935,30.1114,150.28,150.24,12.55846008]
[1745644809129,23.46,150.28,150.24,5.90566008]
[1745644809330,1.8947,150.31,150.27,5.90566008]
[1745644809531,36.01546008,150.32,150.28,12.55676008]
[1745644811337,23.46,150.32,150.29,6.6507]
[1745644811538,5.90566008,150.34,150.3,5.90566008]
[1745644813240,6.6492,150.33,150.3,12.55606008]
[1745644814836,6.6492,150.33,150.3,5.90566008]
[1745644817138,5.90566008,150.32,150.28,12.55696008]
[1745644817440,5.90566008,150.32,150.27,5.90566008]
[1745644817641,5.90566008,150.31,150.27,12.55736008]
[1745644818343,12.55606008,150.31,150.27,12.55736008]
[1745644820443,6.6504,150.31,150.27,12.55736008]
[1745644820945,6.6504,150.31,150.28,5.90566008]
[1745644822256,6.6504,150.31,150.28,12.55706008]
[1745644822545,1.9974,150.33,150.3,5.90566008]
[1745644823046,6.6492,150.34,150.3,12.55606008]
[1745644823747,23.46,150.35,150.32,5.90566008]
[1745644824249,30.1087,150.35,150.32,5.90566008]
[1745644824446,23.46,150.35,150.32,5.90566008]
[1745644824645,5.90566008,150.37,150.32,5.90566008]
[1745644825048,6.648,150.36,150.33,6.6489]
[1745644825245,5.90566008,150.37,150.33,6.6489]
[1745644825449,23.46,150.38,150.34,5.90566008]
[1745644826051,6.6476,150.37,150.34,12.55436008]
[1745644827052,6.648,150.36,150.34,5.90566008]
[1745644827553,5.90566008,150.36,150.32,5.90566008]
[1745644827851,6.6487,150.35,150.32,5.90566008]
[1745644828353,6.6484,150.35,150.32,5.90566008]
[1745644828552,5.90566008,150.36,150.32,5.90566008]
[1745644829252,6.6484,150.35,150.32,5.90566008]
[1745644833054,6.6488,150.34,150.32,5.90566008]
[1745644834557,6.6492,150.33,150.32,5.90566008]
[1745644834757,5.90566008,150.35,150.3,5.90566008]
[1745644835153,6.6499,150.32,150.3,5.90566008]
[1745644837259,6.6493,150.33,150.3,12.55616008]
[1745644837460,6.6493,150.33,150.3,5.90566008]
[1745644837659,29.36566008,150.35,150.3,5.90566008]
[1745644839062,6.6495,150.33,150.3,12.55606008]
[1745644839553,6.6488,150.34,150.32,5.90566008]
[1745644839759,29.36566008,150.38,150.32,5.90566008]
[1745644840863,29.36566008,150.38,150.32,12.55516008]
[1745644841359,5.90566008,150.36,150.32,12.55516008]
[1745644841559,5.90566008,150.36,150.32,5.90566008]
[1745644842062,6.6484,150.35,150.32,12.55526008]
[1745644842478,5.90566008,150.36,150.28,25.4049]
[1745644842656,5.90566008,150.34,150.29,5.90566008]
[1745644842857,5.90566008,150.3,150.26,5.90566008]
[1745644843061,6.6519,150.27,150.24,12.55856008]
[1745644843254,29.36566008,150.3,150.24,5.90566008]
[1745644844163,6.6511,150.29,150.25,6.6526]
[1745644844358,29.36566008,150.3,150.26,5.90566008]
[1745644845260,29.36566008,150.3,150.26,12.55796008]
[1745644845463,29.36566008,150.3,150.26,5.90566008]
[1745644846167,6.6514,150.29,150.26,5.90566008]
[1745644846360,6.6514,150.29,150.25,12.55826008]
[1745644846759,6.6514,150.28,150.25,5.90566008]
[1745644846955,5.90566008,150.29,150.24,5.90566008]
[1745644847266,6.6519,150.27,150.24,5.90566008]
[1745644847465,5.90566008,150.29,150.24,5.90566008]
[1745644847666,5.90566008,150.29,150.25,5.90566008]
[1745644848070,6.6517,150.28,150.25,5.90566008]
[1745644848273,5.90566008,150.29,150.25,5.90566008]
[1745644849266,6.6515,150.28,150.25,5.90566008]
[1745644849568,5.90566008,150.29,150.25,5.90566008]
[1745644849867,6.6515,150.28,150.25,5.90566008]
[1745644850567,6.6515,150.28,150.25,12.55836008]
[1745644850866,29.36566008,150.3,150.26,5.90566008]
[1745644851266,36.01646008,150.3,150.26,12.55776008]
[1745644851773,36.01646008,150.3,150.27,6.6518]
[1745644852067,36.01646008,150.3,150.26,5.90566008]
[1745644852268,23.46,150.3,150.26,5.90566008]
[1745644852472,6.6501,150.31,150.28,5.90566008]
[1745644853363,12.55536008,150.32,150.28,5.90566008]
[1745644853669,6.6497,150.32,150.28,5.90566008]
[1745644854266,41.88816008,150.33,150.28,5.90566008]
[1745644854472,29.36566008,150.36,150.32,5.90566008]
[1745644854666,5.90566008,150.36,150.32,5.90566008]
[1745644855070,6.6488,150.34,150.32,5.90566008]
[1745644856273,6.6488,150.34,150.31,5.90566008]
[1745644856873,6.6488,150.34,150.31,12.55566008]
[1745644860772,6.6488,150.34,150.31,5.90566008]
[1745644861472,6.6484,150.35,150.31,12.55576008]
[1745644861670,6.6484,150.35,150.32,5.90566008]
[1745644862972,6.6479,150.36,150.33,5.90566008]
[1745644863373,23.46,150.37,150.34,5.90566008]
[1745644863669,30.1076,150.37,150.34,5.90566008]
[1745644864471,6.6479,150.36,150.34,5.90566008]
[1745644864869,23.46,150.37,150.33,5.90566008]
[1745644865175,6.6482,150.36,150.33,5.90566008]
[1745644865372,23.46,150.37,150.33,5.90566008]
[1745644865576,5.90566008,150.36,150.33,5.90566008]
[1745644865765,6.6487,150.34,150.31,5.90566008]
[1745644866582,6.6485,150.35,150.31,12.55576008]
[1745644866877,5.90566008,150.36,150.31,12.55576008]
[1745644867580,6.6488,150.34,150.31,5.90566008]
[1745644869881,6.6484,150.35,150.31,12.55566008]
[1745644870175,6.6484,150.35,150.32,5.90566008]
[1745644871480,12.55356008,150.36,150.32,12.55516008]
[1745644871679,6.6479,150.36,150.32,12.55516008]
[1745644871980,23.46,150.37,150.34,5.90566008]
[1745644872281,30.1077,150.37,150.34,5.90566008]
[1745644872475,7.82066008,150.39,150.34,5.90566008]
[1745644872681,31.45856008,150.4,150.36,5.90566008]
[1745644872877,25.5529,150.4,150.37,5.90566008]
[1745644873084,25.5529,150.4,150.37,12.55276008]
[1745644873984,32.199,150.4,150.37,5.90566008]
[1745644876592,6.6465,150.39,150.37,5.90566008]
[1745644876980,31.45856008,150.4,150.35,5.90566008]
[1745644877888,6.6473,150.38,150.35,5.90566008]
[1745644879188,6.6473,150.38,150.35,12.55386008]
[1745644879483,6.6467,150.39,150.35,12.55386008]
[1745644879686,31.45856008,150.4,150.36,6.6478]
[1745644879887,23.46,150.4,150.37,5.90566008]
[1745644880088,23.46,150.4,150.38,5.90566008]
[1745644880289,6.6458,150.41,150.38,5.90566008]
[1745644883896,6.6454,150.42,150.38,12.55256008]
[1745644885801,6.6457,150.41,150.38,12.55256008]
[1745644886201,23.44,150.43,150.39,6.6464]
[1745644886499,30.0849,150.43,150.4,5.90566008]
[1745644887102,23.44,150.43,150.4,12.55156008]
[1745644887401,33.39856008,150.46,150.4,5.90566008]
[1745644887801,6.6448,150.43,150.4,5.90566008]
[1745644888002,5.90566008,150.44,150.37,1.9884]
[1745644888302,6.6451,150.43,150.39,12.55206008]
[1745644888601,5.90566008,150.44,150.39,5.90566008]
[1745644889798,5.90566008,150.4,150.31,1.9884]
[1745644890003,5.90566008,150.38,150.33,5.90566008]
[1745644890302,12.55296008,150.38,150.34,6.6487]
[1745644890804,5.90566008,150.38,150.34,6.6487]
[1745644891004,6.6475,150.37,150.33,12.55476008]
[1745644892305,6.6475,150.37,150.34,6.6487]
[1745644893406,29.34566008,150.4,150.35,12.55396008]
[1745644894004,6.6467,150.39,150.35,12.55396008]
[1745644894707,6.6471,150.38,150.35,5.90566008]
[1745644895907,6.6479,150.36,150.33,5.90566008]
[1745644896309,6.6477,150.37,150.33,12.55476008]
[1745644896607,5.90566008,150.38,150.33,12.55476008]
[1745644896803,6.6476,150.37,150.33,12.55476008]
[1745644897004,5.90566008,150.38,150.33,5.90566008]
[1745644897308,5.90566008,150.38,150.32,5.90566008]
[1745644897511,5.90566008,150.38,150.32,12.55526008]
[1745644898011,6.6482,150.36,150.32,12.55526008]
[1745644898210,5.90566008,150.38,150.32,5.90566008]
[1745644898413,5.90566008,150.38,150.34,5.90566008]
[1745644898608,29.34566008,150.4,150.34,5.90566008]
[1745644899008,35.99206008,150.4,150.36,6.6475]
[1745644899306,35.99206008,150.4,150.36,12.55316008]
[1745644899710,6.6466,150.39,150.36,12.55316008]
[1745644900912,6.6466,150.39,150.36,5.90566008]
[1745644901614,6.6466,150.39,150.36,12.55356008]
[1745644902712,35.99186008,150.4,150.36,12.55356008]
[1745644902914,30.0862,150.4,150.37,6.6474]
[1745644903513,30.0862,150.4,150.36,12.55336008]
[1745644907512,30.0862,150.4,150.37,6.6473]
[1745644907716,23.44,150.4,150.37,12.55296008]
[1745644908014,5.90566008,150.42,150.37,12.55296008]
[1745644908216,6.6459,150.41,150.37,12.55296008]
[1745644908514,5.90566008,150.42,150.38,5.90566008]
[1745644908722,35.99056008,150.43,150.38,5.90566008]
[1745644908919,29.34566008,150.43,150.38,5.90566008]
[1745644909114,23.44,150.43,150.39,5.90566008]
[1745644909310,29.34566008,150.43,150.39,5.90566008]
[1745644909510,6.6456,150.42,150.39,5.90566008]
[1745644910119,6.6456,150.42,150.38,12.55256008]
[1745644910519,6.6457,150.41,150.38,12.55256008]
[1745644911221,12.55096008,150.42,150.38,12.55256008]
[1745644911522,5.90566008,150.42,150.38,12.55256008]
[1745644913216,6.6457,150.41,150.38,12.55256008]
[1745644915622,6.6461,150.4,150.38,5.90566008]
[1745644916418,5.90566008,150.42,150.38,5.90566008]
[1745644917023,5.90566008,150.41,150.36,12.55346008]
[1745644917628,5.90566008,150.39,150.36,12.55346008]
[1745644917919,5.90566008,150.39,150.34,6.6486]
[1745644918224,5.90566008,150.37,150.32,29.34566008]
[1745644918625,6.6481,150.36,150.32,35.99496008]
[1745644918924,5.90566008,150.37,150.32,30.0893]
[1745644919125,6.6484,150.35,150.31,12.55556008]
[1745644919926,6.648,150.36,150.32,6.6494]
[1745644920225,5.90566008,150.37,150.33,5.90566008]
[1745644921131,12.55316008,150.37,150.32,5.90566008]
[1745644922034,12.55316008,150.37,150.33,6.6492]
[1745644922828,5.90566008,150.37,150.34,6.6487]
[1745644923127,14.54986008,150.38,150.34,6.6487]
[1745644924929,5.90566008,150.38,150.35,5.90566008]
[1745644925125,30.0867,150.39,150.35,5.90566008]
[1745644925529,30.0867,150.39,150.35,12.55386008]
[1745644926228,6.647,150.38,150.35,12.55386008]
[1745644927523,30.0867,150.39,150.35,12.55386008]
[1745644928628,35.99236008,150.39,150.35,12.55386008]
[1745644929325,29.34566008,150.39,150.35,5.90566008]
[1745644929530,23.44,150.39,150.36,5.90566008]
[1745644930032,30.0866,150.39,150.36,5.90566008]
[1745644930232,30.0866,150.39,150.35,12.55376008]
[1745644931934,5.90566008,150.37,150.33,29.34566008]
[1745644932232,5.90566008,150.37,150.33,5.90566008]
[1745644932427,6.6482,150.36,150.32,5.90566008]
[1745644932635,5.90566008,150.37,150.32,5.90566008]
[1745644932834,12.55346008,150.37,150.33,6.6489]
[1745644933133,5.90566008,150.37,150.32,5.90566008]
[1745644933533,5.90566008,150.35,150.3,29.34566008]
[1745644933936,12.55446008,150.34,150.3,35.99606008]
[1745644934230,12.55446008,150.34,150.3,29.34566008]
[1745644935237,12.55446008,150.34,150.31,6.65]
[1745644935536,5.90566008,150.34,150.31,6.65]
[1745644936238,12.55376008,150.36,150.3,29.34566008]
[1745644936836,12.55376008,150.36,150.32,6.6496]
[1745644937032,6.6483,150.35,150.32,6.6496]
[1745644938538,6.6483,150.35,150.32,12.55526008]
[1745644938839,6.648,150.36,150.32,12.55526008]
[1745644939034,5.90566008,150.37,150.33,12.55466008]
[1745644939539,12.55336008,150.37,150.33,12.55466008]
[1745644942838,12.55336008,150.37,150.34,6.6487]
[1745644943138,2.0856,150.38,150.35,5.90566008]
[1745644943436,29.34566008,150.39,150.35,5.90566008]
[1745644943642,23.44,150.39,150.35,5.90566008]
[1745644944034,30.0868,150.39,150.36,6.6479]
[1745644944235,23.44,150.39,150.36,12.55356008]
[1745644944841,23.44,150.39,150.38,6.647]
[1745644945043,23.44,150.39,150.38,12.55266008]
[1745644945240,29.34566008,150.42,150.38,12.55266008]
[1745644945437,29.34566008,150.42,150.38,5.90566008]
[1745644945638,5.90566008,150.41,150.37,12.55286008]
[1745644946440,5.90566008,150.4,150.35,5.90566008]
[1745644946642,5.90566008,150.39,150.35,5.90566008]
[1745644946843,5.90566008,150.38,150.34,29.34566008]
[1745644947046,5.90566008,150.38,150.34,5.90566008]
[1745644947642,5.90566008,150.38,150.34,12.55426008]
[1745644949243,6.6475,150.37,150.34,12.55426008]
[1745644949445,5.90566008,150.38,150.34,12.55426008]
[1745644949645,5.90566008,150.39,150.34,12.55426008]
[1745644950437,6.6474,150.38,150.34,12.55426008]
[1745644950639,5.90566008,150.39,150.34,12.55426008]
[1745644950845,5.90566008,150.39,150.34,5.90566008]
[1745644951344,5.90566008,150.37,150.34,5.90566008]
[1745644951844,5.90566008,150.37,150.32,5.90566008]
[1745644952247,6.6486,150.35,150.32,5.90566008]
[1745644955150,6.6488,150.34,150.32,5.90566008]
[1745644956451,6.6485,150.35,150.32,5.90566008]
[1745644959551,6.61130821,150.35,150.32,5.90566008]
[1745644960947,5.90566008,150.37,150.32,5.90566008]
[1745644961152,6.6488,150.34,150.32,5.90566008]
[1745644961454,5.90566008,150.37,150.32,5.90566008]
[1745644961654,6.6486,150.35,150.32,5.90566008]
[1745644962551,6.6486,150.35,150.32,12.55516008]
[1745644962752,6.6479,150.36,150.32,12.55516008]
[1745644963760,6.6483,150.35,150.32,12.55516008]
[1745644964961,6.6483,150.35,150.32,5.90566008]
[1745644965162,23.44,150.38,150.34,5.90566008]
[1745644965758,23.44,150.38,150.34,12.55436008]
[1745644966256,6.6475,150.37,150.34,5.90566008]
[1745644966559,6.6475,150.37,150.35,5.90566008]
[1745644967862,6.6479,150.36,150.34,5.90566008]
[1745644968963,6.6476,150.37,150.34,5.90566008]
[1745644969763,30.087,150.38,150.35,5.90566008]
[1745644969963,23.44,150.38,150.36,5.90566008]
[1745644970164,35.30956008,150.41,150.36,5.90566008]
[1745644970463,33.29936008,150.41,150.36,5.90566008]
[1745644971857,6.6469,150.39,150.36,5.90566008]
[1745644972564,6.6471,150.38,150.35,12.55376008]
[1745644972765,5.90566008,150.4,150.35,5.90566008]
[1745644972961,5.90566008,150.38,150.33,5.90566008]
[1745644973657,6.6482,150.36,150.33,5.90566008]
[1745644976365,6.6485,150.35,150.33,5.90566008]
[1745644977666,6.6485,150.35,150.31,30.0899]
[1745644977964,6.6485,150.35,150.33,5.90566008]
[1745644979066,6.6479,150.36,150.33,5.90566008]
[1745644981668,6.6475,150.37,150.33,12.55486008]
[1745644982569,30.0868,150.39,150.35,5.90566008]
[1745644982768,23.44,150.39,150.35,5.90566008]
[1745644983267,6.6474,150.38,150.35,5.90566008]
[1745644983668,23.44,150.39,150.35,5.90566008]
[1745644984071,5.90566008,150.38,150.33,5.90566008]
[1745644984673,6.6481,150.36,150.33,5.90566008]
[1745644985169,6.6484,150.35,150.33,5.90566008]
[1745644985471,5.90566008,150.36,150.31,29.34566008]
[1745644985869,6.649,150.34,150.31,29.34566008]
[1745644986175,5.90566008,150.38,150.31,29.34566008]
[1745644987270,6.6484,150.35,150.31,35.99576008]
[1745644987573,6.6484,150.35,150.33,5.90566008]
[1745644988376,6.648,150.36,150.33,5.90566008]
[1745644988977,6.6484,150.35,150.33,5.90566008]
[1745644991573,6.648,150.36,150.33,5.90566008]
[1745644991976,6.6471,150.38,150.35,5.90566008]
[1745644992180,3.9537,150.41,150.37,5.90566008]
[1745644992382,1.9227,150.41,150.39,5.90566008]
[1745644992980,23.44,150.42,150.39,5.90566008]
[1745644993380,30.0855,150.42,150.39,5.90566008]
[1745644996281,23.44,150.42,150.39,5.90566008]
[1745644997087,6.6459,150.41,150.39,5.90566008]
[1745644998377,6.6464,150.4,150.37,5.90566008]
[1745644998585,23.44,150.42,150.37,5.90566008]
[1745645000289,5.90566008,150.41,150.35,29.34566008]
[1745645001091,6.6469,150.39,150.35,35.99386008]
[1745645002090,6.6471,150.38,150.35,35.99386008]
[1745645002491,6.6471,150.38,150.35,29.34566008]
[1745645003786,6.6475,150.37,150.35,29.34566008]
[1745645004890,6.6475,150.37,150.35,5.90566008]
[1745645006793,6.6479,150.36,150.35,5.90566008]
[1745645007292,5.90566008,150.39,150.33,5.90566008]
[1745645007495,6.6486,150.35,150.33,5.90566008]
[1745645008291,6.648,150.36,150.33,5.90566008]
[1745645008694,23.44,150.38,150.33,5.90566008]
[1745645009594,23.44,150.38,150.33,5.84967248]
[1745645010093,6.6481,150.36,150.33,5.84967248]
[1745645010997,6.6484,150.35,150.33,5.84967248]
[1745645013799,6.648,150.36,150.33,5.84967248]
[1745645016702,6.6483,150.35,150.33,5.84967248]
[1745645025414,6.6487,150.34,150.33,5.84967248]
[1745645025618,6.6487,150.34,150.3,30.0902]
[1745645025619,5.90566008,150.35,150.3,5.90566008]
[1745645025821,5.90566008,150.35,150.31,5.90566008]
[1745645026013,6.6494,150.33,150.31,5.90566008]
[1745645026214,6.6494,150.33,150.3,5.90566008]
[1745645026719,6.6489,150.34,150.3,5.90566008]
[1745645026920,6.6489,150.34,150.31,5.90566008]
[1745645027220,6.6493,150.33,150.31,5.90566008]
[1745645027719,5.90566008,150.35,150.31,5.90566008]
[1745645028219,6.649,150.34,150.31,5.90566008]
[1745645029121,6.6484,150.35,150.32,5.90566008]
[1745645030422,6.6488,150.34,150.32,5.90566008]
[1745645031223,6.6485,150.35,150.32,5.90566008]
[1745645033322,6.6489,150.34,150.32,5.90566008]
[1745645037427,6.6485,150.35,150.32,5.90566008]
[1745645039229,6.6488,150.34,150.32,5.90566008]
[1745645039925,6.6488,150.34,150.29,23.44]
[1745645040121,6.6488,150.34,150.31,12.55556008]
[1745645040734,6.6493,150.33,150.31,5.90566008]
[1745645041031,5.90566008,150.35,150.3,5.90566008]
[1745645041333,6.6495,150.33,150.3,5.90566008]
[1745645041930,6.6499,150.32,150.29,5.90566008]
[1745645042236,31.26236008,150.34,150.29,5.90566008]
[1745645043232,6.6499,150.32,150.29,5.90566008]
[1745645045634,6.6502,150.31,150.29,5.90566008]
[1745645047233,6.6505,150.3,150.29,5.90566008]
[1745645047434,5.90566008,150.33,150.28,5.90566008]
[1745645047835,6.6502,150.31,150.28,5.90566008]
[1745645048839,6.6502,150.31,150.27,6.6517]
[1745645049040,6.6505,150.3,150.28,5.90566008]
[1745645052241,6.651,150.29,150.28,5.90566008]
[1745645052442,6.651,150.29,150.27,5.90566008]
[1745645053641,6.651,150.29,150.28,5.90566008]
[1745645053941,6.6507,150.3,150.28,5.90566008]
[1745645056342,6.6507,150.3,150.26,30.0922]
[1745645056543,6.6507,150.3,150.28,5.90566008]
[1745645063550,5.90566008,150.31,150.27,5.90566008]
[1745645063847,5.90566008,150.31,150.26,5.90566008]
[1745645064046,6.6518,150.27,150.26,5.90566008]
[1745645064247,6.6518,150.27,150.24,5.90566008]
[1745645064545,6.6516,150.28,150.25,6.6527]
[1745645064748,6.6516,150.28,150.26,5.90566008]
[1745645065047,29.34566008,150.3,150.26,5.90566008]
[1745645065243,6.6514,150.29,150.26,5.90566008]
[1745645066143,6.6514,150.29,150.26,12.55786008]
[1745645066349,30.0907,150.3,150.26,12.55786008]
[1745645066649,23.44,150.3,150.27,5.90566008]
[1745645067348,23.44,150.3,150.26,12.55786008]
[1745645068247,6.651,150.29,150.26,12.55786008]
[1745645071151,6.651,150.29,150.26,5.90566008]
[1745645072851,6.6514,150.28,150.26,5.90566008]
[1745645074052,6.6514,150.28,150.25,12.55826008]
[1745645074357,6.6514,150.28,150.25,5.90566008]
[1745645075850,6.6514,150.28,150.25,12.55836008]
[1745645077353,6.6514,150.28,150.25,5.90566008]
[1745645077655,6.652,150.27,150.25,5.90566008]
[1745645081960,6.652,150.27,150.23,30.0935]
[1745645082157,6.652,150.27,150.24,5.90566008]
[1745645083766,6.652,150.27,150.25,5.90566008]
[1745645091671,6.6523,150.26,150.25,5.90566008]
[1745645091871,23.44,150.3,150.2,23.44]
[1745645092075,5.90566008,150.26,150.2,23.44]
[1745645092277,29.34566008,150.26,150.21,5.90566008]
[1745645092476,6.6535,150.24,150.21,5.90566008]
[1745645093178,6.6535,150.24,150.21,12.56016008]
[1745645093477,6.6529,150.25,150.21,12.56016008]
[1745645093677,23.44,150.26,150.23,5.90566008]
[1745645094380,2.0684,150.28,150.25,5.90566008]
[1745645095178,8.7199,150.28,150.25,5.90566008]
[1745645095374,2.0684,150.28,150.25,5.90566008]
[1745645095577,2.0684,150.28,150.21,2.0214]
[1745645095775,6.6522,150.27,150.24,5.90566008]
[1745645095979,2.0684,150.28,150.24,5.90566008]
[1745645096778,7.97406008,150.28,150.24,5.90566008]
[1745645097278,6.6531,150.25,150.22,5.90566008]
[1745645097779,6.6534,150.24,150.22,5.90566008]
[1745645099878,6.6536,150.23,150.22,5.90566008]
[1745645102283,6.6543,150.22,150.21,5.90566008]
[1745645103182,6.6546,150.21,150.2,5.90566008]
[1745645106084,6.6542,150.22,150.2,5.90566008]
[1745645109485,6.6545,150.21,150.2,5.90566008]
[1745645109686,6.6545,150.21,150.19,5.90566008]
[1745645110886,6.6542,150.22,150.19,5.90566008]
[1745645111088,7.87376008,150.24,150.19,5.90566008]
[1745645111286,5.90566008,150.21,150.17,5.90566008]
[1745645111586,6.6557,150.19,150.16,5.90566008]
[1745645111788,29.34566008,150.21,150.16,5.90566008]
[1745645112284,5.90566008,150.2,150.15,5.90566008]
[1745645112485,5.90566008,150.19,150.15,5.90566008]
[1745645112686,6.6566,150.17,150.15,5.90566008]
[1745645114087,6.656,150.18,150.15,5.90566008]
[1745645114287,5.90566008,150.2,150.15,5.90566008]
[1745645114488,5.90566008,150.2,150.16,5.90566008]
[1745645114688,6.6559,150.18,150.16,5.90566008]
[1745645125293,6.6563,150.17,150.16,5.90566008]
[1745645125494,6.6563,150.17,150.15,5.90566008]
[1745645125898,6.656,150.18,150.15,12.56276008]
[1745645126496,6.656,150.18,150.15,5.90566008]
[1745645126697,6.6564,150.17,150.15,5.90566008]
[1745645127393,6.6567,150.16,150.14,5.90566008]
[1745645128003,6.6572,150.15,150.12,12.56406008]
[1745645128299,5.90566008,150.16,150.12,5.90566008]
[1745645128500,5.90566008,150.16,150.11,5.90566008]
[1745645129102,6.6579,150.14,150.11,5.90566008]
[1745645129603,6.6573,150.15,150.11,12.56456008]
[1745645129897,6.6573,150.15,150.12,5.90566008]
[1745645131502,6.6568,150.16,150.13,5.90566008]
[1745645131702,6.6568,150.16,150.14,5.90566008]
[1745645132001,30.0965,150.17,150.14,5.90566008]
[1745645133203,30.0965,150.17,150.13,12.56366008]
[1745645134801,30.0965,150.17,150.14,6.6574]
[1745645137203,36.00216008,150.17,150.13,6.6578]
[1745645137403,5.90566008,150.16,150.13,6.6578]
[1745645138703,30.0965,150.17,150.13,6.6578]
[1745645138704,36.00216008,150.17,150.13,6.6578]
[1745645139402,6.6568,150.16,150.13,6.6578]
[1745645141602,36.00206008,150.17,150.13,6.6578]
[1745645143698,6.6568,150.16,150.13,6.6578]
[1745645144305,36.00206008,150.17,150.13,12.56346008]
[1745645144906,6.657,150.16,150.12,12.56396008]
[1745645145106,6.657,150.16,150.13,5.90566008]
[1745645145404,6.657,150.16,150.14,5.90566008]
[1745645146002,30.0965,150.17,150.15,5.90566008]
[1745645146203,30.0965,150.17,150.14,5.90566008]
[1745645146805,30.0965,150.17,150.1,1.9238]
[1745645147106,30.0965,150.17,150.13,5.90566008]
[1745645147501,30.0965,150.17,150.13,12.56346008]
[1745645149806,6.6568,150.16,150.13,12.56346008]
[1745645150403,30.0964,150.17,150.13,12.56346008]
[1745645152309,6.6569,150.16,150.13,12.56346008]
[1745645152509,23.44,150.17,150.12,5.90566008]
[1745645152703,5.90566008,150.16,150.12,5.90566008]
[1745645153010,6.6574,150.15,150.12,5.90566008]
[1745645153909,5.90566008,150.16,150.11,5.90566008]
[1745645153910,6.6579,150.14,150.11,5.90566008]
[1745645154508,6.6573,150.15,150.11,12.56446008]
[1745645154710,5.90566008,150.16,150.11,5.90566008]
[1745645155710,12.56266008,150.16,150.12,6.6582]
[1745645156410,23.44,150.17,150.13,12.56356008]
[1745645157314,5.90566008,150.16,150.07,23.44]
[1745645157612,5.90566008,150.16,150.1,5.90566008]
[1745645157911,5.90566008,150.16,150.11,6.6586]
[1745645158211,12.56276008,150.16,150.11,6.6586]
[1745645158711,12.56276008,150.16,150.11,12.56426008]
[1745645159212,6.6572,150.15,150.11,6.6586]
[1745645159412,6.6572,150.15,150.11,12.56426008]
[1745645162215,6.6576,150.14,150.11,12.56426008]
[1745645162714,6.6576,150.14,150.11,5.90566008]
[1745645164117,6.6585,150.12,150.08,6.6599]
[1745645164413,5.90566008,150.16,150.1,5.90566008]
[1745645164814,6.658,150.14,150.1,12.56496008]
[1745645166713,5.90566008,150.16,150.1,5.90566008]
[1745645166714,6.6582,150.13,150.1,5.90566008]
[1745645168115,6.6582,150.13,150.1,12.56506008]
[1745645168317,6.6577,150.14,150.1,5.90566008]
[1745645168612,6.6577,150.14,150.1,12.56486008]
[1745645168813,6.6592,150.11,150.06,1.9861]
[1745645169120,5.90566008,150.1,150.05,5.90566008]
[1745645169317,6.6599,150.09,150.05,5.90566008]
[1745645170721,6.6599,150.09,150.05,12.56726008]
[1745645170914,6.6595,150.1,150.07,5.90566008]
[1745645172218,5.90566008,150.08,149.98,358.0]
[1745645172519,5.90566008,150.04,149.99,5.90566008]
[1745645172715,5.90566008,150.04,150.0,5.90566008]
[1745645172915,5.90566008,150.05,150.0,5.90566008]
[1745645173120,23.46,150.07,150.0,5.90566008]
[1745645173422,5.90566008,150.06,150.01,5.90566008]
[1745645173921,6.6615,150.06,150.02,5.90566008]
[1745645174119,29.36566008,150.07,150.02,5.90566008]
[1745645174318,5.90566008,150.06,149.97,23.46]
[1745645174518,5.90566008,150.05,150.0,5.90566008]